[Event "*** Titled Tuesday Blitz"]
[Site "Chess.com"]
[Date "2020.04.14"]
[Round "8"]
[White "krzyzan94"]
[Black "arminmusovic"]
[Result "1-0"]
[WhiteElo "2706"]
[BlackElo "2511"]
[TimeControl "180+1"]
[EndTime "11:29:31 PDT"]
[Termination "krzyzan94 won by resignation"]

1. d4 {[%clk 0:03:00.9]} 1... d5 {[%clk 0:03:00.3]} 2. Bf4 {[%clk 0:03:00]} 2...
c5 {[%clk 0:03:01.2]} 3. e3 {[%clk 0:03:00]} 3... Nc6 {[%clk 0:03:01.4]} 4. Nf3
{[%clk 0:02:58.2]} 4... a6 {[%clk 0:03:01.9]} 5. Nbd2 {[%clk 0:02:57.3]} 5...
Bg4 {[%clk 0:03:02.1]} 6. c3 {[%clk 0:02:55.3]} 6... cxd4 {[%clk 0:03:02.2]} 7.
exd4 {[%clk 0:02:55]} 7... e6 {[%clk 0:03:02]} 8. Bd3 {[%clk 0:02:50.2]} 8...
Bd6 {[%clk 0:03:00.6]} 9. Bxd6 {[%clk 0:02:50.3]} 9... Qxd6 {[%clk 0:03:01.5]}
10. O-O {[%clk 0:02:50.9]} 10... Nf6 {[%clk 0:03:01.3]} 11. Re1 {[%clk
0:02:50.1]} 11... O-O {[%clk 0:03:01.3]} 12. Nf1 {[%clk 0:02:39.8]} 12... Rfe8
{[%clk 0:03:00.4]} 13. h3 {[%clk 0:02:27.1]} 13... Bxf3 {[%clk 0:03:00.2]} 14.
Qxf3 {[%clk 0:02:27.7]} 14... e5 {[%clk 0:03:00.8]} 15. dxe5 {[%clk 0:02:28.5]}
15... Nxe5 {[%clk 0:03:00.9]} 16. Qd1 {[%clk 0:02:26.6]} 16... Rad8 {[%clk
0:02:53.5]} 17. Bc2 {[%clk 0:02:24.2]} 17... Nc6 {[%clk 0:02:46.6]} 18. Ne3
{[%clk 0:02:17.7]} 18... d4 {[%clk 0:02:43.6]} 19. Nf5 {[%clk 0:02:17.1]} 19...
Rxe1+ {[%clk 0:02:44.5]} 20. Qxe1 {[%clk 0:02:18]} 20... Qc5 {[%clk 0:02:42.5]}
21. Rd1 {[%clk 0:01:48.7]} 21... dxc3 {[%clk 0:02:35.6]} 22. Rxd8+ {[%clk
0:01:45.1]} 22... Nxd8 {[%clk 0:02:36.5]} 23. bxc3 {[%clk 0:01:41.9]} 23... Ne6
{[%clk 0:02:22.4]} 24. Qd2 {[%clk 0:01:27.2]} 24... Qa5 {[%clk 0:01:50.8]} 25.
Qd6 {[%clk 0:01:03.4]} 25... Qd8 {[%clk 0:01:34]} 26. Qe5 {[%clk 0:00:52.5]}
26... Qc7 {[%clk 0:01:14.6]} 27. Nd6 {[%clk 0:00:23.8]} 27... Qc5 {[%clk
0:00:59.7]} 28. Qg3 {[%clk 0:00:18.2]} 28... Qc7 {[%clk 0:00:49.6]} 29. Bb3
{[%clk 0:00:17.2]} 29... Kf8 {[%clk 0:00:34.7]} 30. Qd3 {[%clk 0:00:16.5]} 30...
Nc5 {[%clk 0:00:27.6]} 31. Qd4 {[%clk 0:00:10.1]} 31... Nxb3 {[%clk 0:00:27.8]}
32. axb3 {[%clk 0:00:11]} 32... Qc6 {[%clk 0:00:16.8]} 33. Qb4 {[%clk
0:00:09.9]} 33... Kg8 {[%clk 0:00:16.3]} 34. Nxb7 {[%clk 0:00:10.2]} 34... Qxb7
{[%clk 0:00:16.7]} 35. Qxb7 {[%clk 0:00:10]} 1-0

[Event "*** Titled Tuesday Blitz"]
[Site "Chess.com"]
[Date "2020.04.14"]
[Round "8"]
[White "SPEEDSKATER"]
[Black "Kobalia"]
[Result "1-0"]
[WhiteElo "2833"]
[BlackElo "2675"]
[TimeControl "180+1"]
[EndTime "11:29:33 PDT"]
[Termination "SPEEDSKATER won by resignation"]

1. d4 {[%clk 0:03:00.9]} 1... d5 {[%clk 0:02:59.4]} 2. c4 {[%clk 0:02:58.9]}
2... c6 {[%clk 0:02:59.4]} 3. Nf3 {[%clk 0:02:57.6]} 3... Nf6 {[%clk 0:02:59]}
4. e3 {[%clk 0:02:57]} 4... a6 {[%clk 0:02:58.2]} 5. Nc3 {[%clk 0:02:55.9]} 5...
e6 {[%clk 0:02:57.7]} 6. Qc2 {[%clk 0:02:49.2]} 6... dxc4 {[%clk 0:02:55.5]} 7.
Bxc4 {[%clk 0:02:48.5]} 7... c5 {[%clk 0:02:55.6]} 8. dxc5 {[%clk 0:02:46.9]}
8... Bxc5 {[%clk 0:02:54.6]} 9. O-O {[%clk 0:02:47]} 9... Nbd7 {[%clk
0:02:52.1]} 10. Rd1 {[%clk 0:02:44.5]} 10... O-O {[%clk 0:02:46.2]} 11. Bd3
{[%clk 0:02:41.5]} 11... Qe7 {[%clk 0:02:35.9]} 12. b3 {[%clk 0:02:36.3]} 12...
b5 {[%clk 0:02:19]} 13. Ne4 {[%clk 0:02:35.4]} 13... Ba3 {[%clk 0:02:00.1]} 14.
Bxa3 {[%clk 0:01:52.9]} 14... Qxa3 {[%clk 0:01:58.3]} 15. Nfg5 {[%clk
0:01:48.5]} 15... h6 {[%clk 0:01:52.6]} 16. Nxf6+ {[%clk 0:01:47.2]} 16... Nxf6
{[%clk 0:01:52.2]} 17. Nh7 {[%clk 0:01:45.9]} 17... Nxh7 {[%clk 0:01:50]} 18.
Bxh7+ {[%clk 0:01:46.8]} 18... Kh8 {[%clk 0:01:49.7]} 19. Be4 {[%clk 0:01:46.1]}
19... Ra7 {[%clk 0:01:31.9]} 20. Rac1 {[%clk 0:01:39.4]} 20... Rd7 {[%clk
0:01:30.2]} 21. Rxd7 {[%clk 0:01:20.3]} 21... Bxd7 {[%clk 0:01:28.7]} 22. Qc5
{[%clk 0:01:20.7]} 22... Qxc5 {[%clk 0:01:24.4]} 23. Rxc5 {[%clk 0:01:21.6]}
23... Rc8 {[%clk 0:01:20.8]} 24. Rxc8+ {[%clk 0:01:19.3]} 24... Bxc8 {[%clk
0:01:20.7]} 25. Kf1 {[%clk 0:01:19.9]} 25... e5 {[%clk 0:01:13.7]} 26. Ke2
{[%clk 0:01:17.8]} 26... Kg8 {[%clk 0:01:10.7]} 27. Kd3 {[%clk 0:01:17.8]} 27...
Kf8 {[%clk 0:01:09.8]} 28. Kc3 {[%clk 0:01:17.4]} 28... a5 {[%clk 0:01:01.9]}
29. Bc6 {[%clk 0:01:15]} 29... b4+ {[%clk 0:00:55.4]} 30. Kc4 {[%clk 0:01:14.8]}
30... Ke7 {[%clk 0:00:55.6]} 31. Kc5 {[%clk 0:01:14.8]} 31... Be6 {[%clk
0:00:46.7]} 32. Bd5 {[%clk 0:01:11.3]} 32... Bg4 {[%clk 0:00:40.2]} 33. Kb6
{[%clk 0:01:08.9]} 33... f6 {[%clk 0:00:37.3]} 34. Kxa5 {[%clk 0:01:08.7]} 34...
Kd6 {[%clk 0:00:37.2]} 35. Bf3 {[%clk 0:01:08.9]} 35... Bxf3 {[%clk 0:00:31.8]}
36. gxf3 {[%clk 0:01:09.8]} 36... Kc5 {[%clk 0:00:31.7]} 37. Ka4 {[%clk
0:01:09.5]} 37... f5 {[%clk 0:00:31.6]} 38. a3 {[%clk 0:01:06.7]} 38... bxa3
{[%clk 0:00:31.5]} 39. Kxa3 {[%clk 0:01:07.6]} 39... Kb5 {[%clk 0:00:31.6]} 40.
b4 {[%clk 0:01:07.2]} 40... g5 {[%clk 0:00:24.7]} 41. Kb3 {[%clk 0:01:07]} 41...
h5 {[%clk 0:00:24.1]} 42. Kc3 {[%clk 0:00:58.7]} 42... h4 {[%clk 0:00:22.1]} 43.
Kb3 {[%clk 0:00:52]} 43... e4 {[%clk 0:00:19.5]} 44. fxe4 {[%clk 0:00:51.3]}
44... fxe4 {[%clk 0:00:19.2]} 45. Kc3 {[%clk 0:00:51.5]} 45... g4 {[%clk
0:00:19.8]} 46. Kb3 {[%clk 0:00:50.9]} 1-0

[Event "*** Titled Tuesday Blitz"]
[Site "Chess.com"]
[Date "2020.04.14"]
[Round "8"]
[White "amiralfio"]
[Black "goldenspine"]
[Result "1-0"]
[WhiteElo "2530"]
[BlackElo "2310"]
[TimeControl "180+1"]
[EndTime "11:29:33 PDT"]
[Termination "amiralfio won by resignation"]

1. g4 {[%clk 0:03:00.9]} 1... e5 {[%clk 0:02:50.5]} 2. d4 {[%clk 0:02:58]} 2...
exd4 {[%clk 0:02:49.3]} 3. Qxd4 {[%clk 0:02:55]} 3... Nc6 {[%clk 0:02:48.4]} 4.
Qa4 {[%clk 0:02:52.5]} 4... d5 {[%clk 0:02:45.3]} 5. Bg2 {[%clk 0:02:48.1]} 5...
Bc5 {[%clk 0:02:39.2]} 6. c3 {[%clk 0:02:43.4]} 6... Qh4 {[%clk 0:02:29.8]} 7.
Qf4 {[%clk 0:02:19.8]} 7... Nge7 {[%clk 0:01:59.3]} 8. h3 {[%clk 0:02:04.4]}
8... Ng6 {[%clk 0:01:45.3]} 9. Qg3 {[%clk 0:01:54.1]} 9... Qxg3 {[%clk
0:01:44.2]} 10. fxg3 {[%clk 0:01:55]} 10... Be6 {[%clk 0:01:43.1]} 11. Nf3
{[%clk 0:01:52.6]} 11... h6 {[%clk 0:01:38.6]} 12. Nbd2 {[%clk 0:01:39.9]} 12...
O-O-O {[%clk 0:01:35.5]} 13. Nb3 {[%clk 0:01:39.4]} 13... Bd6 {[%clk 0:01:35.8]}
14. Kf2 {[%clk 0:01:36.7]} 14... f5 {[%clk 0:01:33.1]} 15. Nfd4 {[%clk
0:01:21.3]} 15... Nxd4 {[%clk 0:01:32.4]} 16. Nxd4 {[%clk 0:01:22.2]} 16... Bc5
{[%clk 0:01:32.2]} 17. Be3 {[%clk 0:01:16.1]} 17... Rhe8 {[%clk 0:01:19.4]} 18.
gxf5 {[%clk 0:01:11.1]} 18... Bxd4 {[%clk 0:01:11.7]} 19. Bxd4 {[%clk
0:01:08.5]} 19... Bxf5 {[%clk 0:01:11.7]} 20. Bxg7 {[%clk 0:01:06.6]} 20... Be4
{[%clk 0:01:05.5]} 21. Bxh6 {[%clk 0:00:57.4]} 21... Bxg2 {[%clk 0:01:00.4]} 22.
Kxg2 {[%clk 0:00:58.3]} 22... Rxe2+ {[%clk 0:01:00.1]} 23. Kf3 {[%clk
0:00:58.8]} 23... Rde8 {[%clk 0:00:46.5]} 24. h4 {[%clk 0:00:49.3]} 24... R8e4
{[%clk 0:00:44.6]} 25. Bf4 {[%clk 0:00:36.7]} 25... Nxf4 {[%clk 0:00:27.3]} 26.
gxf4 {[%clk 0:00:37.6]} 26... R2e3+ {[%clk 0:00:26.6]} 27. Kg4 {[%clk
0:00:35.1]} 27... Re2 {[%clk 0:00:23.4]} 28. Raf1 {[%clk 0:00:25.8]} 28... Rg2+
{[%clk 0:00:21]} 29. Kf5 {[%clk 0:00:24.9]} 29... Rxb2 {[%clk 0:00:20.1]} 30. h5
{[%clk 0:00:24.3]} 30... Re8 {[%clk 0:00:17.3]} 31. h6 {[%clk 0:00:23.8]} 31...
Rb6 {[%clk 0:00:17.3]} 32. h7 {[%clk 0:00:22]} 32... Rf8+ {[%clk 0:00:16.3]} 33.
Ke5 {[%clk 0:00:12.8]} 33... Rh8 {[%clk 0:00:16.5]} 34. Rfg1 {[%clk 0:00:11.2]}
34... Rd6 {[%clk 0:00:16.8]} 35. Rg8+ {[%clk 0:00:10.4]} 35... Rd8 {[%clk
0:00:17.2]} 36. Rxh8 {[%clk 0:00:10.4]} 36... Rxh8 {[%clk 0:00:16.7]} 37. Kf6
{[%clk 0:00:10.8]} 1-0

[Event "*** Titled Tuesday Blitz"]
[Site "Chess.com"]
[Date "2020.04.14"]
[Round "8"]
[White "Promacherr"]
[Black "kirillshevchenko"]
[Result "0-1"]
[WhiteElo "2607"]
[BlackElo "2851"]
[TimeControl "180+1"]
[EndTime "11:29:34 PDT"]
[Termination "kirillshevchenko won by resignation"]

1. e4 {[%clk 0:03:00.9]} 1... c5 {[%clk 0:02:58.4]} 2. Nf3 {[%clk 0:03:00.8]}
2... d6 {[%clk 0:02:58.3]} 3. d4 {[%clk 0:03:01]} 3... cxd4 {[%clk 0:02:59.2]}
4. Nxd4 {[%clk 0:03:01.9]} 4... Nf6 {[%clk 0:02:57.6]} 5. Nc3 {[%clk 0:03:02]}
5... a6 {[%clk 0:02:57.7]} 6. Bc4 {[%clk 0:03:02]} 6... e6 {[%clk 0:02:57.1]} 7.
Bb3 {[%clk 0:03:02.2]} 7... b5 {[%clk 0:02:57.1]} 8. f4 {[%clk 0:02:58.9]} 8...
Be7 {[%clk 0:02:47.6]} 9. e5 {[%clk 0:02:55.2]} 9... dxe5 {[%clk 0:02:38.3]} 10.
fxe5 {[%clk 0:02:56.1]} 10... Nfd7 {[%clk 0:02:38]} 11. Bf4 {[%clk 0:02:56]}
11... Nc5 {[%clk 0:02:24.1]} 12. Qd2 {[%clk 0:02:16.7]} 12... O-O {[%clk
0:02:00.4]} 13. O-O {[%clk 0:02:08.4]} 13... Bb7 {[%clk 0:01:56.9]} 14. Rad1
{[%clk 0:01:53]} 14... Nc6 {[%clk 0:01:53.3]} 15. Nxc6 {[%clk 0:01:48.9]} 15...
Bxc6 {[%clk 0:01:54.2]} 16. Qe3 {[%clk 0:01:47.1]} 16... Qc7 {[%clk 0:01:45.5]}
17. Bg5 {[%clk 0:01:43.2]} 17... b4 {[%clk 0:01:41.5]} 18. Ne2 {[%clk 0:01:42]}
18... Nxb3 {[%clk 0:01:35]} 19. axb3 {[%clk 0:01:40.1]} 19... Bxg5 {[%clk
0:01:20.2]} 20. Qxg5 {[%clk 0:01:41]} 20... Bb5 {[%clk 0:01:20.5]} 21. Rf2
{[%clk 0:01:16.6]} 21... Qxc2 {[%clk 0:01:08.3]} 22. Rd2 {[%clk 0:01:02.9]}
22... Qb1+ {[%clk 0:01:04.4]} 23. Rf1 {[%clk 0:01:01.8]} 23... Qg6 {[%clk
0:01:04.2]} 24. Qf4 {[%clk 0:00:55.8]} 24... Rad8 {[%clk 0:00:59.1]} 25. Rfd1
{[%clk 0:00:53.5]} 25... Rxd2 {[%clk 0:00:53]} 26. Rxd2 {[%clk 0:00:54.4]} 26...
a5 {[%clk 0:00:47.2]} 27. Nd4 {[%clk 0:00:47.9]} 27... Qb1+ {[%clk 0:00:46.7]}
28. Kf2 {[%clk 0:00:47.9]} 28... Qf1+ {[%clk 0:00:40.8]} 29. Kg3 {[%clk
0:00:47.8]} 29... Qe1+ {[%clk 0:00:41.1]} 30. Kh3 {[%clk 0:00:43.1]} 30... Ba6
{[%clk 0:00:22.3]} 31. Rf2 {[%clk 0:00:42.6]} 31... Qd1 {[%clk 0:00:19.7]} 32.
Rf3 {[%clk 0:00:24.3]} 32... Bb7 {[%clk 0:00:18.4]} 33. Nxe6 {[%clk 0:00:19.1]}
33... Bc8 {[%clk 0:00:16.6]} 34. Rg3 {[%clk 0:00:13.9]} 34... Qh5+ {[%clk
0:00:14.1]} 0-1

[Event "*** Titled Tuesday Blitz"]
[Site "Chess.com"]
[Date "2020.04.14"]
[Round "8"]
[White "ftorodent"]
[Black "PavelChernomordik"]
[Result "1-0"]
[WhiteElo "2644"]
[BlackElo "2425"]
[TimeControl "180+1"]
[EndTime "11:29:34 PDT"]
[Termination "ftorodent won by resignation"]

1. d4 {[%clk 0:03:00.9]} 1... g6 {[%clk 0:02:58]} 2. c4 {[%clk 0:03:00.4]} 2...
Bg7 {[%clk 0:02:57.7]} 3. e4 {[%clk 0:03:00.3]} 3... Nc6 {[%clk 0:02:56]} 4. Be3
{[%clk 0:02:56.7]} 4... e5 {[%clk 0:02:55.4]} 5. dxe5 {[%clk 0:02:51.3]} 5...
Bxe5 {[%clk 0:02:51]} 6. Qd2 {[%clk 0:02:45.9]} 6... d6 {[%clk 0:02:50.1]} 7.
Nc3 {[%clk 0:02:41]} 7... Bg7 {[%clk 0:02:37.3]} 8. f3 {[%clk 0:02:31.5]} 8...
Be6 {[%clk 0:02:34.8]} 9. Nd5 {[%clk 0:02:27.5]} 9... Nce7 {[%clk 0:02:24]} 10.
Ne2 {[%clk 0:02:25.5]} 10... c6 {[%clk 0:02:22.7]} 11. Nxe7 {[%clk 0:02:24.4]}
11... Nxe7 {[%clk 0:02:15.3]} 12. Nf4 {[%clk 0:02:23]} 12... O-O {[%clk
0:02:10]} 13. Be2 {[%clk 0:02:16.6]} 13... Qc7 {[%clk 0:02:06]} 14. O-O {[%clk
0:02:15.2]} 14... Rad8 {[%clk 0:02:01.5]} 15. Rac1 {[%clk 0:02:14.7]} 15... Bc8
{[%clk 0:01:55]} 16. Rfd1 {[%clk 0:02:11.1]} 16... b6 {[%clk 0:01:52.3]} 17. b3
{[%clk 0:02:09.4]} 17... f5 {[%clk 0:01:49.5]} 18. Bd3 {[%clk 0:01:59]} 18...
Kh8 {[%clk 0:01:36.6]} 19. Re1 {[%clk 0:01:51]} 19... fxe4 {[%clk 0:01:34.1]}
20. Bxe4 {[%clk 0:01:51.1]} 20... Nf5 {[%clk 0:01:33.5]} 21. Bf2 {[%clk
0:01:49.2]} 21... Rde8 {[%clk 0:01:31.1]} 22. Rcd1 {[%clk 0:01:46.7]} 22... Qf7
{[%clk 0:01:28.9]} 23. Ne2 {[%clk 0:01:39.9]} 23... Be5 {[%clk 0:01:24.9]} 24.
Nd4 {[%clk 0:01:33.4]} 24... Nxd4 {[%clk 0:01:20.3]} 25. Bxd4 {[%clk 0:01:33.2]}
25... Bb7 {[%clk 0:01:07.3]} 26. Bxe5+ {[%clk 0:01:23.9]} 26... dxe5 {[%clk
0:01:06]} 27. Qg5 {[%clk 0:01:22.8]} 27... Kg7 {[%clk 0:00:58.4]} 28. Rd6 {[%clk
0:01:20.8]} 28... Re6 {[%clk 0:00:52.8]} 29. Red1 {[%clk 0:01:20.1]} 29... Rxd6
{[%clk 0:00:50.2]} 30. Rxd6 {[%clk 0:01:19.3]} 30... Re8 {[%clk 0:00:50.5]} 31.
Qd2 {[%clk 0:01:15.3]} 31... Re7 {[%clk 0:00:47.3]} 32. Bxc6 {[%clk 0:01:12.6]}
32... Bxc6 {[%clk 0:00:46.2]} 33. Rxc6 {[%clk 0:01:12.8]} 33... e4 {[%clk
0:00:47.1]} 34. Qd4+ {[%clk 0:01:12.6]} 34... Kh6 {[%clk 0:00:45.4]} 35. Rf6
{[%clk 0:01:01.4]} 35... Qe8 {[%clk 0:00:43.3]} 36. Rf4 {[%clk 0:00:58.2]} 36...
Re5 {[%clk 0:00:28.7]} 37. Rh4+ {[%clk 0:00:42.3]} 37... Rh5 {[%clk 0:00:21.8]}
38. Rxe4 {[%clk 0:00:36.4]} 38... Qf7 {[%clk 0:00:20.4]} 39. Qe3+ {[%clk
0:00:35.6]} 1-0

[Event "*** Titled Tuesday Blitz"]
[Site "Chess.com"]
[Date "2020.04.14"]
[Round "8"]
[White "Grischuk"]
[Black "Sviridov_Valery"]
[Result "1-0"]
[WhiteElo "3094"]
[BlackElo "2830"]
[TimeControl "180+1"]
[EndTime "11:29:36 PDT"]
[Termination "Grischuk won by resignation"]

1. Nf3 {[%clk 0:03:00.9]} 1... Nf6 {[%clk 0:02:58.8]} 2. g3 {[%clk 0:03:01]}
2... b6 {[%clk 0:02:58.4]} 3. d4 {[%clk 0:02:59.4]} 3... Bb7 {[%clk 0:02:58.2]}
4. c4 {[%clk 0:02:59.7]} 4... e6 {[%clk 0:02:57]} 5. Bg2 {[%clk 0:02:59.6]} 5...
Be7 {[%clk 0:02:57.5]} 6. Nc3 {[%clk 0:02:59.5]} 6... O-O {[%clk 0:02:53.3]} 7.
Qc2 {[%clk 0:02:59]} 7... d5 {[%clk 0:02:51.8]} 8. cxd5 {[%clk 0:02:59.9]} 8...
Nxd5 {[%clk 0:02:50.7]} 9. Nxd5 {[%clk 0:02:57.4]} 9... Bxd5 {[%clk 0:02:50.3]}
10. O-O {[%clk 0:02:48.9]} 10... Nd7 {[%clk 0:02:48.5]} 11. e4 {[%clk
0:02:46.7]} 11... Bb7 {[%clk 0:02:47.9]} 12. Rd1 {[%clk 0:02:46.7]} 12... Rc8
{[%clk 0:02:42.1]} 13. Bf4 {[%clk 0:02:43.7]} 13... c5 {[%clk 0:02:39.3]} 14. d5
{[%clk 0:02:43.7]} 14... exd5 {[%clk 0:02:38.5]} 15. exd5 {[%clk 0:02:44.6]}
15... Re8 {[%clk 0:02:35.3]} 16. h4 {[%clk 0:02:30.2]} 16... h6 {[%clk
0:02:32.4]} 17. Bh3 {[%clk 0:02:07.4]} 17... b5 {[%clk 0:02:02.8]} 18. a4 {[%clk
0:02:00.7]} 18... b4 {[%clk 0:02:01.8]} 19. a5 {[%clk 0:02:01.3]} 19... Nf6
{[%clk 0:01:06.8]} 20. Ne5 {[%clk 0:01:24.1]} 20... Nxd5 {[%clk 0:01:05.6]} 21.
Qc4 {[%clk 0:01:19]} 21... Bf6 {[%clk 0:00:48.5]} 22. Bxc8 {[%clk 0:01:18.5]}
22... Qxc8 {[%clk 0:00:47.2]} 23. Rxd5 {[%clk 0:01:18.1]} 23... Bxe5 {[%clk
0:00:47.5]} 24. Rxe5 {[%clk 0:00:25.6]} 24... Rxe5 {[%clk 0:00:45.7]} 25. Bxe5
{[%clk 0:00:26.5]} 25... Qc6 {[%clk 0:00:44.8]} 26. f3 {[%clk 0:00:26.1]} 26...
Qxf3 {[%clk 0:00:44.7]} 27. Qf1 {[%clk 0:00:26.4]} 27... Qh1+ {[%clk 0:00:42.3]}
28. Kf2 {[%clk 0:00:26.3]} 28... Qf3+ {[%clk 0:00:39.1]} 29. Ke1 {[%clk
0:00:21.2]} 29... Qe3+ {[%clk 0:00:38.6]} 30. Qe2 {[%clk 0:00:21.5]} 30... Qg1+
{[%clk 0:00:37.8]} 31. Qf1 {[%clk 0:00:21.6]} 31... Qe3+ {[%clk 0:00:37.7]} 32.
Qe2 {[%clk 0:00:22.2]} 32... Qg1+ {[%clk 0:00:35]} 33. Kd2 {[%clk 0:00:21.4]}
33... Qxa1 {[%clk 0:00:34.2]} 34. Qg4 {[%clk 0:00:21.8]} 34... g6 {[%clk
0:00:27]} 35. Qd7 {[%clk 0:00:20.5]} 1-0

[Event "*** Titled Tuesday Blitz"]
[Site "Chess.com"]
[Date "2020.04.14"]
[Round "8"]
[White "Hikaru"]
[Black "MishkaFighter"]
[Result "1-0"]
[WhiteElo "3228"]
[BlackElo "2613"]
[TimeControl "180+1"]
[EndTime "11:29:36 PDT"]
[Termination "Hikaru won on time"]

1. b3 {[%clk 0:03:00.9]} 1... Nf6 {[%clk 0:02:57.2]} 2. Bb2 {[%clk 0:03:01.8]}
2... e6 {[%clk 0:02:58.1]} 3. Nf3 {[%clk 0:03:01.6]} 3... d5 {[%clk 0:02:57.9]}
4. g4 {[%clk 0:03:01.5]} 4... h6 {[%clk 0:02:53.1]} 5. Rg1 {[%clk 0:03:01.6]}
5... Be7 {[%clk 0:02:52.2]} 6. h4 {[%clk 0:03:01.6]} 6... Nc6 {[%clk 0:02:29.1]}
7. g5 {[%clk 0:03:01.3]} 7... hxg5 {[%clk 0:02:29.3]} 8. hxg5 {[%clk 0:03:02.2]}
8... Nh5 {[%clk 0:02:27.9]} 9. e3 {[%clk 0:03:02.2]} 9... a6 {[%clk 0:02:24.5]}
10. c4 {[%clk 0:03:00.1]} 10... e5 {[%clk 0:01:58.5]} 11. cxd5 {[%clk
0:02:58.2]} 11... Qxd5 {[%clk 0:01:59.4]} 12. Nc3 {[%clk 0:02:54.2]} 12... Qd8
{[%clk 0:01:46.1]} 13. Qc2 {[%clk 0:02:49.2]} 13... g6 {[%clk 0:01:38]} 14. a3
{[%clk 0:02:43.8]} 14... Bf5 {[%clk 0:01:36.1]} 15. Ne4 {[%clk 0:02:41.5]} 15...
Qd5 {[%clk 0:01:25.8]} 16. d3 {[%clk 0:02:37.5]} 16... O-O-O {[%clk 0:01:24.1]}
17. O-O-O {[%clk 0:02:28.2]} 17... Rhe8 {[%clk 0:01:08.9]} 18. Nfd2 {[%clk
0:02:22.3]} 18... Kb8 {[%clk 0:01:03.7]} 19. Be2 {[%clk 0:02:20.1]} 19... Ng7
{[%clk 0:01:03]} 20. Nf6 {[%clk 0:02:17.1]} 20... Bxf6 {[%clk 0:00:58]} 21. gxf6
{[%clk 0:02:17.1]} 21... Ne6 {[%clk 0:00:58.9]} 22. e4 {[%clk 0:02:16]} 22...
Qd7 {[%clk 0:00:48.4]} 23. Nf3 {[%clk 0:02:16]} 23... Bh3 {[%clk 0:00:45.4]} 24.
Rg3 {[%clk 0:02:13.3]} 24... Nf4 {[%clk 0:00:45.1]} 25. Kb1 {[%clk 0:02:08.7]}
25... Bg4 {[%clk 0:00:44.2]} 26. Bf1 {[%clk 0:01:45.9]} 26... Bxf3 {[%clk
0:00:41.6]} 27. Rxf3 {[%clk 0:01:46.8]} 27... Nd4 {[%clk 0:00:42.5]} 28. Bxd4
{[%clk 0:01:47.3]} 28... Qxd4 {[%clk 0:00:43]} 29. Qc4 {[%clk 0:01:47.8]} 29...
Qxc4 {[%clk 0:00:39.4]} 30. bxc4 {[%clk 0:01:48.7]} 30... Rd6 {[%clk 0:00:40.2]}
31. d4 {[%clk 0:01:49.2]} 31... Rxf6 {[%clk 0:00:36]} 32. d5 {[%clk 0:01:46]}
32... b6 {[%clk 0:00:30.3]} 33. c5 {[%clk 0:01:44.9]} 33... bxc5 {[%clk
0:00:30.2]} 34. Rc3 {[%clk 0:01:43.5]} 34... Rb6+ {[%clk 0:00:27.4]} 35. Ka2
{[%clk 0:01:42.6]} 35... Rh8 {[%clk 0:00:28.3]} 36. Rxc5 {[%clk 0:01:36.1]}
36... Rh2 {[%clk 0:00:28.8]} 37. Rc2 {[%clk 0:01:35.9]} 37... f5 {[%clk
0:00:23.9]} 38. Re1 {[%clk 0:01:31.1]} 38... Rh1 {[%clk 0:00:23.7]} 39. Rec1
{[%clk 0:01:30.4]} 39... Rh7 {[%clk 0:00:21.7]} 40. f3 {[%clk 0:01:30.2]} 40...
Rf7 {[%clk 0:00:18.3]} 41. Bc4 {[%clk 0:01:27.8]} 41... Rh7 {[%clk 0:00:16.4]}
42. a4 {[%clk 0:01:26.8]} 42... Rb4 {[%clk 0:00:15.7]} 43. Bb3 {[%clk
0:01:24.8]} 43... fxe4 {[%clk 0:00:14.9]} 44. fxe4 {[%clk 0:01:25.2]} 44... Rxe4
{[%clk 0:00:15.8]} 45. d6 {[%clk 0:01:25.6]} 45... cxd6 {[%clk 0:00:16]} 46. a5
{[%clk 0:01:22.1]} 46... Nd3 {[%clk 0:00:16.1]} 47. Rc8+ {[%clk 0:01:21.8]}
47... Ka7 {[%clk 0:00:14.7]} 48. R1c3 {[%clk 0:01:13.4]} 48... Nc5 {[%clk
0:00:13.5]} 49. Bd5 {[%clk 0:01:12.3]} 49... Rh2+ {[%clk 0:00:12.9]} 50. Kb1
{[%clk 0:01:12.7]} 50... Rb4+ {[%clk 0:00:05.6]} 51. Kc1 {[%clk 0:01:13]} 51...
Rh1+ {[%clk 0:00:04.2]} 52. Bxh1 {[%clk 0:01:12.8]} 52... Nb7 {[%clk 0:00:01.4]}
53. R3c7 {[%clk 0:01:11.7]} 1-0

[Event "*** Titled Tuesday Blitz"]
[Site "Chess.com"]
[Date "2020.04.14"]
[Round "8"]
[White "KetiTsatsalashvili"]
[Black "Gubajdullin"]
[Result "0-1"]
[WhiteElo "2223"]
[BlackElo "2450"]
[TimeControl "180+1"]
[EndTime "11:29:39 PDT"]
[Termination "Gubajdullin won by resignation"]

1. d4 {[%clk 0:03:00.9]} 1... d5 {[%clk 0:02:58.8]} 2. Nf3 {[%clk 0:02:59.8]}
2... c6 {[%clk 0:02:58.6]} 3. Bf4 {[%clk 0:02:58.3]} 3... Nf6 {[%clk 0:02:58.6]}
4. e3 {[%clk 0:02:57.1]} 4... Bf5 {[%clk 0:02:57.6]} 5. c4 {[%clk 0:02:55]} 5...
e6 {[%clk 0:02:57.6]} 6. Nc3 {[%clk 0:02:53.4]} 6... Qb6 {[%clk 0:02:57.3]} 7.
Qc1 {[%clk 0:02:50.8]} 7... Nbd7 {[%clk 0:02:52.1]} 8. Be2 {[%clk 0:02:50.5]}
8... h6 {[%clk 0:02:48.6]} 9. O-O {[%clk 0:02:50.3]} 9... Be7 {[%clk 0:02:46.4]}
10. h3 {[%clk 0:02:50.3]} 10... O-O {[%clk 0:02:44.2]} 11. c5 {[%clk 0:02:44.9]}
11... Qd8 {[%clk 0:02:41.9]} 12. b4 {[%clk 0:02:45.3]} 12... b6 {[%clk 0:02:34]}
13. b5 {[%clk 0:02:39.6]} 13... bxc5 {[%clk 0:02:31.9]} 14. bxc6 {[%clk
0:02:39.2]} 14... Nb6 {[%clk 0:02:27.2]} 15. dxc5 {[%clk 0:02:37.9]} 15... Bxc5
{[%clk 0:02:24.8]} 16. Nb5 {[%clk 0:02:32.2]} 16... Qe7 {[%clk 0:02:24.6]} 17.
Nbd4 {[%clk 0:02:10.4]} 17... Bg6 {[%clk 0:02:15.1]} 18. Ne5 {[%clk 0:02:05]}
18... Bh7 {[%clk 0:02:08.6]} 19. c7 {[%clk 0:01:55]} 19... Ba3 {[%clk
0:01:36.3]} 20. Qc3 {[%clk 0:01:23.6]} 20... Ne4 {[%clk 0:01:27.7]} 21. Qa5
{[%clk 0:01:00.9]} 21... Rfc8 {[%clk 0:01:03.6]} 22. Nec6 {[%clk 0:00:45.4]}
22... Qf8 {[%clk 0:01:02.7]} 23. Ba6 {[%clk 0:00:42.4]} 23... Nc4 {[%clk
0:01:01.9]} 24. Qa4 {[%clk 0:00:35.3]} 24... Nc3 {[%clk 0:00:55.5]} 25. Qc2
{[%clk 0:00:33.8]} 25... Bxc2 {[%clk 0:00:54]} 26. Nxc2 {[%clk 0:00:25.7]} 26...
Ne2+ {[%clk 0:00:53.8]} 27. Kh1 {[%clk 0:00:24.9]} 27... Nxf4 {[%clk 0:00:53.7]}
28. exf4 {[%clk 0:00:25.2]} 28... Rxc7 {[%clk 0:00:53.8]} 29. N6d4 {[%clk
0:00:22.5]} 29... Bb2 {[%clk 0:00:52.1]} 30. Rab1 {[%clk 0:00:21.6]} 30... Bxd4
{[%clk 0:00:52]} 31. Nxd4 {[%clk 0:00:22.5]} 31... Qa3 {[%clk 0:00:47.5]} 32.
Nb5 {[%clk 0:00:19]} 32... Qc5 {[%clk 0:00:41.9]} 33. Nxc7 {[%clk 0:00:18.3]}
33... Qxc7 {[%clk 0:00:42.1]} 34. Rfc1 {[%clk 0:00:15.1]} 34... Qxf4 {[%clk
0:00:40.7]} 35. a4 {[%clk 0:00:14.1]} 35... Qxf2 {[%clk 0:00:39.6]} 36. Bb7
{[%clk 0:00:13.1]} 36... Ne3 {[%clk 0:00:38.4]} 37. Rg1 {[%clk 0:00:10.6]} 37...
Rb8 {[%clk 0:00:38.3]} 38. a5 {[%clk 0:00:10]} 38... Nf5 {[%clk 0:00:36.3]} 39.
a6 {[%clk 0:00:09]} 39... Ng3+ {[%clk 0:00:36]} 40. Kh2 {[%clk 0:00:09.1]} 40...
Qf4 {[%clk 0:00:36.1]} 41. Rgc1 {[%clk 0:00:07.3]} 41... Ne2+ {[%clk 0:00:35.2]}
42. Kh1 {[%clk 0:00:07]} 42... Nxc1 {[%clk 0:00:35.2]} 0-1